{"text_format":"1","workbook":"xlsx","n_sheets":2,"sheets":["提出用","事務局集計用"],"not_rendered":{"charts":0,"images":0,"macros":1,"external_links":0,"defined_names":3,"comments":0,"pivot_tables":0},"unopened":[],"bounds":{"document_bytes":16777216,"sheet_cells":100000,"rows_first":2000,"rows_last":500,"rows_between":2000,"halvings":0,"cell_chars":16384,"cell_head_chars":4096},"cells_cut":0,"cells_raw":0,"read":"whole","date_system":"1900"}

{"sheet":"提出用","index":0,"n_rows":285,"n_cols":42,"rows_kept":285,"cut":false,"hidden":false,"merged":[[35,8,35,13],[35,15,35,20],[40,4,40,12],[43,4,43,12],[45,4,45,12],[40,13,40,16],[40,1,40,2],[3,0,3,20],[22,0,22,20],[16,8,16,10],[15,0,15,2],[15,3,15,15],[16,3,16,7],[25,8,26,20],[37,0,37,20],[34,0,34,20],[6,0,6,2],[10,3,10,20],[6,3,6,20],[10,0,10,2],[9,0,9,2],[13,0,13,2],[12,0,12,2],[8,0,8,20],[7,0,7,2],[23,8,23,20],[33,0,33,20],[24,9,24,10],[24,12,24,13],[24,14,24,20],[30,15,30,18],[48,4,48,12],[49,4,49,12],[36,0,36,20],[48,1,48,2],[49,1,49,2],[43,14,43,15],[44,14,44,15],[45,14,45,15],[41,4,41,12],[42,4,42,12],[47,14,47,15],[49,14,49,15],[48,14,48,15],[48,17,48,18],[49,17,49,18],[46,17,46,18],[41,1,41,2],[42,1,42,2],[43,1,43,2],[44,1,44,2],[45,1,45,2],[46,1,46,2],[47,1,47,2],[41,14,41,15],[53,0,53,20],[50,4,50,12],[50,14,50,15],[50,17,50,18],[51,4,51,12],[51,14,51,15],[51,17,51,18],[52,4,52,12],[52,14,52,15],[52,17,52,18],[50,1,50,2],[51,1,51,2],[52,1,52,2],[48,19,48,20],[49,19,49,20],[50,19,50,20],[51,19,51,20],[32,0,32,20],[28,0,28,20],[14,0,14,2],[14,7,14,20],[14,4,14,6],[16,11,16,15],[44,17,44,18],[24,0,24,4],[41,17,41,18],[16,0,16,2],[17,4,17,11],[18,4,18,11],[19,4,19,11],[20,4,20,11],[21,4,21,11],[17,13,17,20],[18,13,18,20],[19,13,19,20],[20,13,20,20],[21,13,21,20],[30,6,30,7],[30,10,30,12],[26,5,26,7],[35,0,35,6],[1,0,1,20],[40,17,40,18],[42,17,42,18],[43,17,43,18],[23,5,23,7],[24,5,24,7],[13,3,13,10],[12,3,12,10],[12,16,12,20],[12,11,12,15],[13,16,13,20],[13,11,13,15],[15,16,15,20],[16,16,16,20],[5,0,5,20],[2,0,2,20],[4,0,4,20],[9,3,9,20],[7,3,7,20],[25,0,25,4],[26,0,26,4],[25,5,25,7],[11,0,11,20],[23,0,23,4],[1,22,1,42],[2,22,2,42],[3,22,3,42],[4,22,4,42],[6,22,6,24],[6,25,6,42],[5,22,5,42],[7,22,7,24],[7,25,7,42],[8,22,8,42],[9,22,9,24],[9,25,9,42],[10,22,10,24],[10,25,10,42],[11,22,11,42],[12,22,12,24],[12,25,12,32],[12,33,12,37],[12,38,12,42],[13,22,13,24],[13,25,13,32],[13,33,13,37],[13,38,13,42],[14,22,14,24],[15,38,15,42],[16,38,16,42],[14,26,14,28],[14,29,14,42],[15,22,15,24],[15,25,15,37],[16,22,16,24],[16,25,16,29],[16,30,16,32],[16,33,16,37],[17,26,17,33],[17,35,17,42],[18,26,18,33],[18,35,18,42],[19,26,19,33],[19,35,19,42],[20,26,20,33],[20,35,20,42],[21,26,21,33],[21,35,21,42],[26,22,26,26],[26,27,26,29],[33,22,33,42],[34,22,34,42],[36,22,36,42],[35,37,35,42],[24,22,24,26],[24,27,24,29],[25,22,25,26],[25,27,25,29],[44,23,44,24],[44,26,44,34],[42,41,42,42],[43,23,43,24],[43,26,43,34],[43,36,43,37],[43,39,43,40],[43,41,43,42],[44,36,44,37],[44,39,44,40],[44,41,44,42],[0,0,0,2],[0,22,0,24],[54,1,54,20],[17,0,21,2],[17,22,21,24],[22,22,22,42],[23,22,23,26],[23,27,23,29],[23,30,23,42],[24,31,24,32],[24,34,24,35],[24,36,24,42],[25,30,26,42],[28,22,28,42],[30,28,30,29],[30,32,30,34],[30,37,30,40],[32,22,32,42],[37,22,37,42],[53,22,53,42],[54,23,54,42],[51,23,51,24],[51,26,51,34],[51,36,51,37],[40,19,40,20],[41,19,41,20],[42,19,42,20],[43,19,43,20],[44,19,44,20],[45,19,45,20],[46,19,46,20],[47,19,47,20],[46,4,46,12],[42,14,42,15],[46,14,46,15],[45,17,45,18],[47,4,47,12],[47,17,47,18],[52,19,52,20],[44,4,44,12],[35,22,35,28],[35,30,35,35],[38,22,39,42],[40,23,40,24],[40,26,40,34],[40,35,40,38],[40,39,40,40],[40,41,40,42],[41,23,41,24],[41,26,41,34],[41,36,41,37],[41,39,41,40],[41,41,41,42],[42,23,42,24],[42,26,42,34],[42,36,42,37],[42,39,42,40],[38,0,39,20],[45,23,45,24],[45,26,45,34],[45,36,45,37],[45,39,45,40],[45,41,45,42],[46,23,46,24],[46,26,46,34],[46,36,46,37],[46,39,46,40],[46,41,46,42],[47,23,47,24],[47,26,47,34],[47,36,47,37],[47,39,47,40],[47,41,47,42],[48,23,48,24],[48,26,48,34],[48,36,48,37],[48,39,48,40],[48,41,48,42],[52,41,52,42],[49,23,49,24],[49,26,49,34],[49,36,49,37],[49,39,49,40],[49,41,49,42],[50,23,50,24],[50,26,50,34],[50,36,50,37],[50,39,50,40],[50,41,50,42],[51,39,51,40],[51,41,51,42],[52,23,52,24],[52,26,52,34],[52,36,52,37],[52,39,52,40]]}
["提出用 ",null,null,null,null,null,null,null,null,null,null,null,null,null,null,null,null,null,null,null,null,null,"記入例 "]
["建設技術公開「ＥＥ東北’18」出展申込書",null,null,null,null,null,null,null,null,null,null,null,null,null,null,null,null,null,null,null,null,null,"建設技術公開「ＥＥ東北’18」出展申込書"]
["「ＥＥ東北'18」出展募集要項に同意の上、以下のとおり出展を申込みます",null,null,null,null,null,null,null,null,null,null,null,null,null,null,null,null,null,null,null,null,null,"「ＥＥ東北'18」出展募集要項に同意の上、以下のとおり出展を申込みます"]
["１．出展申込者",null,null,null,null,null,null,null,null,null,null,null,null,null,null,null,null,null,null,null,null,null,"１．出展申込者"]
["※共同出展の場合は、代表となる会社名または団体名を記入（入力）してください\n　 こちらに記載した会社名または団体名あて（担当者所在地）に請求書を送付します",null,null,null,null,null,null,null,null,null,null,null,null,null,null,null,null,null,null,null,null,null,"※共同出展の場合は、代表となる会社名または団体名を記入（入力）してください\n　 こちらに記載した会社名または団体名あて（担当者所在地）に請求書を送付します"]
["出展申込者の正式な社名・団体名を記入（入力）してください",null,null,null,null,null,null,null,null,null,null,null,null,null,null,null,null,null,null,null,null,null,"出展申込者の正式な社名・団体名を記入（入力）してください"]
["ﾌﾘｶﾞﾅ(半角)",null,null,null,null,null,null,null,null,null,null,null,null,null,null,null,null,null,null,null,null,null,"ﾌﾘｶﾞﾅ(半角)",null,null,"ﾄｳﾎｸｷﾞｼﾞｭﾂｹﾝｷｭｳｹﾝﾀｰ"]
["会社名\nまたは\n団体名",null,null,null,null,null,null,null,null,null,null,null,null,null,null,null,null,null,null,null,null,null,"会社名\nまたは\n団体名",null,null,"㈱東北技術研究センター"]
["上記名称と社名プレートやガイドブックに表記する名称が異なる場合は、こちらに記入（入力）してください",null,null,null,null,null,null,null,null,null,null,null,null,null,null,null,null,null,null,null,null,null,"上記名称と社名プレートやガイドブックに表記する名称が異なる場合は、こちらに記入（入力）してください"]
["ﾌﾘｶﾞﾅ(半角)",null,null,null,null,null,null,null,null,null,null,null,null,null,null,null,null,null,null,null,null,null,"ﾌﾘｶﾞﾅ(半角)"]
["出展者名\n※社名プレート、ガイドブックに表記する名称",null,null,null,null,null,null,null,null,null,null,null,null,null,null,null,null,null,null,null,null,null,"出展者名\n※社名プレート、ガイドブックに表記する名称"]
["ＥＥ東北'18に関する窓口となる方を記入（入力）してください",null,null,null,null,null,null,null,null,null,null,null,null,null,null,null,null,null,null,null,null,null,"ＥＥ東北'18に関する窓口となる方を記入（入力）してください"]
["ﾌﾘｶﾞﾅ(半角)",null,null,null,null,null,null,null,null,null,null,"所属部署",null,null,null,null,"役　職",null,null,null,null,null,"ﾌﾘｶﾞﾅ(半角)",null,null,"ﾅｶｺｼ　ｲｸﾔ",null,null,null,null,null,null,null,"所属部署",null,null,null,null,"役　職"]
["担当者氏名",null,null,null,null,null,null,null,null,null,null,null,null,null,null,null,null,null,null,null,null,null,"担当者氏名",null,null,"中越　育也",null,null,null,null,null,null,null,"技術開発部",null,null,null,null,"次長"]
["所在地",null,null,"〒",null,null,null,null,null,null,null,null,null,null,null,null,null,null,null,null,null,null,"所在地",null,null,"〒","985-0842",null,null,"宮城県多賀城市桜木三丁目６番１号"]
["E-mail",null,null,null,null,null,null,null,null,null,null,null,null,null,null,null,"出展者の本社・本部等の\n所在地（都道府県）",null,null,null,null,null,"E-mail",null,null,"thr-tougi01@mlit.go.jp",null,null,null,null,null,null,null,null,null,null,null,null,"出展者の本社・本部等の\n所在地（都道府県）"]
["ＴＥＬ",null,null,null,null,null,null,null,"ＦＡＸ",null,null,null,null,null,null,null,null,null,null,null,null,null,"ＴＥＬ",null,null,"022-365-7983",null,null,null,null,"ＦＡＸ",null,null,"022-365-8152",null,null,null,null,"宮城県"]
["所属する\n構成団体\n\n(該当欄を\n○で囲むか\nボタンをクリック)",null,null,null,"(一社)日本建設業連合会　東北支部",null,null,null,null,null,null,null,null,"(一社)日本道路建設業協会　東北支部",null,null,null,null,null,null,null,null,"所属する\n構成団体\n\n(該当欄を\n○で囲むか\nボタンをクリック)",null,null,null,"(一社)日本建設業連合会　東北支部",null,null,null,null,null,null,null,null,"(一社)日本道路建設業協会　東北支部"]
[null,null,null,null,"東北建設業協会連合会",null,null,null,null,null,null,null,null,"(一社)日本建設機械施工協会　東北支部",null,null,null,null,null,null,null,null,null,null,null,null,"東北建設業協会連合会",null,null,null,null,null,null,null,null,"(一社)日本建設機械施工協会　東北支部"]
[null,null,null,null,"(一社)東北コンクリート製品協会",null,null,null,null,null,null,null,null,"(一社)全国特定法面保護協会　東北地方支部",null,null,null,null,null,null,null,null,null,null,null,null,"(一社)東北コンクリート製品協会",null,null,null,null,null,null,null,null,"(一社)全国特定法面保護協会　東北地方支部"]
[null,null,null,null,"(一社)日本埋立浚渫協会　東北地方支部",null,null,null,null,null,null,null,null,"(一社)建設電気技術協会　東北地方支部",null,null,null,null,null,null,null,null,null,null,null,null,"(一社)日本埋立浚渫協会　東北地方支部",null,null,null,null,null,null,null,null,"(一社)建設電気技術協会　東北地方支部"]
[null,null,null,null,"(一社)建設コンサルタンツ協会",null,null,null,null,null,null,null,null,"単独出展・大学・その他\n※記載の団体に属さない場合はこちら",null,null,null,null,null,null,null,null,null,null,null,null,"(一社)建設コンサルタンツ協会",null,null,null,null,null,null,null,null,"単独出展・大学・その他\n※記載の団体に属さない場合はこちら"]
["２．出展小間の希望",null,null,null,null,null,null,null,null,null,null,null,null,null,null,null,null,null,null,null,null,null,"２．出展小間の希望"]
["屋内小間",null,null,null,null,"必要小間数",null,null,"角小間希望　(該当欄を○で囲むか、ボタンをクリック)",null,null,null,null,null,null,null,null,null,null,null,null,null,"屋内小間",null,null,null,null,"必要小間数",null,null,"角小間希望　(該当欄を○で囲むか、ボタンをクリック)"]
["１小間あたり\n間口3m×奥行3m×高さ2.4m",null,null,null,null,null,null,null,null,"有り",null,null,"無し",null,"※選択のない場合は「希望無し」とさせていただきます",null,null,null,null,null,null,null,"１小間あたり\n間口3m×奥行3m×高さ2.4m",null,null,null,null,1,null,null,null,"有り",null,null,"無し",null,"※選択のない場合は「希望無し」とさせていただきます"]
["屋外小間",null,null,null,null,"必要小間数",null,null,"※申込み多数の場合は、角小間とならない場合があります。\n※屋内角小間の仕切り壁はL字形２面となりますのでご注意下さい。\n　 （中間小間の仕切り壁はコの字形３面）",null,null,null,null,null,null,null,null,null,null,null,null,null,"屋外小間",null,null,null,null,"必要小間数",null,null,"※申込み多数の場合は、角小間とならない場合があります。\n※屋内角小間の仕切り壁はL字形２面となりますのでご注意下さい。\n　 （中間小間の仕切り壁はコの字形３面）"]
["１小間あたり\n間口10m×奥行10m",null,null,null,null,null,null,null,null,null,null,null,null,null,null,null,null,null,null,null,null,null,"１小間あたり\n間口10m×奥行10m",null,null,null,null,1]
[]
["◆出展者の過去のＥＥ東北への出展回数をわかる範囲でお知らせください  　(該当欄を○で囲むか、ボタンをクリック)",null,null,null,null,null,null,null,null,null,null,null,null,null,null,null,null,null,null,null,null,null,"◆出展者の過去のＥＥ東北への出展回数をわかる範囲でお知らせください  　(該当欄を○で囲むか、ボタンをクリック)"]
[]
[null,null,null,"なし",null,null,"１～５回",null,null,null,"６～２６回",null,null,null,null,"２７回すべて参加",null,null,null,null,null,null,null,null,null,"なし",null,null,"１～５回",null,null,null,"６～２６回",null,null,null,null,"２７回すべて参加"]
[]
["◆個人情報のお取扱いについて◆",null,null,null,null,null,null,null,null,null,null,null,null,null,null,null,null,null,null,null,null,null,"◆個人情報のお取扱いについて◆"]
[" ご記入いただいた情報はＥＥ東北実行委員会事務局からのＥＥ東北出展に関わる各種ご案内に利用させていただきます。\n 法令に基づく場合を除き、ご本人の同意を得ることなく他に利用または提供することはありません。",null,null,null,null,null,null,null,null,null,null,null,null,null,null,null,null,null,null,null,null,null," ご記入いただいた情報はＥＥ東北実行委員会事務局からのＥＥ東北出展に関わる各種ご案内に利用させていただきます。\n 法令に基づく場合を除き、ご本人の同意を得ることなく他に利用または提供することはありません。"]
["3．新技術プレゼンテーションの希望",null,null,null,null,null,null,null,null,null,null,null,null,null,null,null,null,null,null,null,null,null,"3．新技術プレゼンテーションの希望"]
["希望の有無\n　(該当欄を○で囲むか、ボタンをクリック)",null,null,null,null,null,null,null,"希望する",null,null,null,null,null,null,"希望しない",null,null,null,null,null,null,"希望の有無\n　(該当欄を○で囲むか、ボタンをクリック)",null,null,null,null,null,null,null,"希望する",null,null,null,null,null,null,"希望しない"]
["※プレゼンテーションで発表を希望する技術は、次項の「4．出展技術」の中から選択し、ボタンをクリックしてください。\n   手書きの場合は○を塗りつぶしてください。\n※希望多数の場合は、事務局による抽選の上、発表者を決定させていただきます。\n※前回（ＥＥ東北'17）と同様の発表技術は、対象外となる場合があります。",null,null,null,null,null,null,null,null,null,null,null,null,null,null,null,null,null,null,null,null,null,"※プレゼンテーションで発表を希望する技術は、次項の「4．出展技術」の中から選択し、右端の○を塗りつぶすか、\n　 ボタンをクリックしてください。\n※希望多数の場合は、事務局による抽選の上、発表者を決定させていただきます。\n※前回（ＥＥ東北'17）と同様の発表技術は、対象外となる場合があります。"]
["4．出展技術",null,null,null,null,null,null,null,null,null,null,null,null,null,null,null,null,null,null,null,null,null,"4．出展技術"]
["※出展技術数(ガイドブックに掲載できる技術数)は、１小間あたり最大で３技術までです。\n※出展技術分野をプルダウンリストから選択してください。\n※屋内エリアか屋外エリアか希望するエリアをプルダウンリストから選択してください。\n※出展技術の名称はガイドブックに掲載の都合上、25文字以内に制限させていただいております。\n　 25文字以上は入力できませんのでご了承ください。\n※NETIS登録番号はNETIS掲載中の登録番号を入力してください。記号はプルダウンリストから選択できます。\n※i-Constructionに該当する技術の場合はプルダウンリストから選択してください。\n   ブースの配置は、代表技術として選択された技術分野のエリアへ配置されます\n※２技術以上出展する場合、メインとなる技術を代表として１技術だけ選択し、一番上の枠に入力（記入）してください。\n　　(1小間につき１技術ではなく、１出展者につき１技術）",null,null,null,null,null,null,null,null,null,null,null,null,null,null,null,null,null,null,null,null,null,"※出展技術数(ガイドブックに掲載できる技術数)は、１小間あたり最大で３技術までです。\n※出展技術分野をプルダウンリストから選択してください。\n※屋内エリアか屋外エリアか希望するエリアをプルダウンリストから選択してください。\n※出展技術の名称はガイドブックに掲載の都合上、25文字以内に制限させていただいております。\n　 25文字以上は入力できませんのでご了承ください。\n※NETIS登録番号はNETIS掲載中の登録番号を入力してください。記号はプルダウンリストから選択できます。\n※i-Constructionに該当する技術の場合はプルダウンリストから選択してください。\n   ブースの配置は、代表技術として選択された技術分野のエリアへ配置されます\n※２技術以上出展する場合、メインとなる技術を代表として１技術だけ選択し、一番上の枠に入力（記入）してください。\n　　(1小間につき１技術ではなく、１出展者につき１技術）"]
[]
["№","技術分野",null,"希望\nエリア","技術の名称　（２５文字以内）\n※２５文字以上は確定できません。",null,null,null,null,null,null,null,null,"NETIS登録番号\n(登録が無い場合は空欄)",null,null,null,"i-Construction\nに該当",null,"プレゼン\n希望",null,null,"№","技術分野",null,"希望\nエリア","技術の名称　（２５文字以内）\n※２５文字以上は確定できません。",null,null,null,null,null,null,null,null,"NETIS登録番号\n(登録が無い場合は空欄)",null,null,null,"i-Construction\nに該当",null,"プレゼン\n希望"]
["代表\n1",null,null,null,null,null,null,null,null,null,null,null,null,null,null,null,null,null,null,null,null,null,"代表\n1","設計・施工",null,"屋内","MMS移動計測車両システム",null,null,null,null,null,null,null,null,"KT-",150010,null,"-A","i-Construction"]
[2,null,null,null,null,null,null,null,null,null,null,null,null,null,null,null,null,null,null,null,null,null,2,"防災・安全",null,"屋内","コンクリート構造物の調査手法"]
[3,null,null,null,null,null,null,null,null,null,null,null,null,null,null,null,null,null,null,null,null,null,3,"防災・安全",null,"屋外","組立応急橋"]
[4,null,null,null,null,null,null,null,null,null,null,null,null,null,null,null,null,null,null,null,null,null,4]
[5,null,null,null,null,null,null,null,null,null,null,null,null,null,null,null,null,null,null,null,null,null,5]
[6,null,null,null,null,null,null,null,null,null,null,null,null,null,null,null,null,null,null,null,null,null,6]
[7,null,null,null,null,null,null,null,null,null,null,null,null,null,null,null,null,null,null,null,null,null,7]
[8,null,null,null,null,null,null,null,null,null,null,null,null,null,null,null,null,null,null,null,null,null,8]
[9,null,null,null,null,null,null,null,null,null,null,null,null,null,null,null,null,null,null,null,null,null,9]
[10,null,null,null,null,null,null,null,null,null,null,null,null,null,null,null,null,null,null,null,null,null,10]
[11,null,null,null,null,null,null,null,null,null,null,null,null,null,null,null,null,null,null,null,null,null,11]
[12,null,null,null,null,null,null,null,null,null,null,null,null,null,null,null,null,null,null,null,null,null,12]
["５．事務局あて連絡事項",null,null,null,null,null,null,null,null,null,null,null,null,null,null,null,null,null,null,null,null,null,"５．事務局あて連絡事項"]
["通信欄",null,null,null,null,null,null,null,null,null,null,null,null,null,null,null,null,null,null,null,null,null,"通信欄"]
[]
[]
[]
[]
[]
["北海道","i-Construction",null,"Ａ","設計・施工",null,"HK-",null,0,null,"-A"]
["青森県",null,null,"Ｂ","維持管理予防保全",null,"TH-",null,1,null,"-V"]
["岩手県",null,null,"Ｃ","建設副産物リサイクル",null,"KTK-",null,2,null,"-VE"]
["宮城県",null,null,"Ｄ","防災・安全",null,"KT-",null,3,null,"-VR"]
["秋田県",null,null,"Ｅ","その他共通",null,"HR-",null,4]
["山形県",null,null,"Ｆ","大学研究室の展示",null,"CB-",null,5]
["福島県",null,null,null,"屋外展示",null,"KK-",null,6]
["栃木県",null,null,null,null,null,"CG-",null,7]
["茨城県",null,null,"屋内",null,null,"SK-",null,8]
["群馬県",null,null,"屋外",null,null,"QS-",null,9]
["埼玉県",null,null,null,null,null,"OK-",null,10]
["千葉県",null,null,"★","企業・団体",null,"TS-",null,11]
["東京都",null,null,"☆","大学・行政",null,null,null,12]
["神奈川県"]
["新潟県"]
["富山県"]
["石川県"]
["福井県"]
["山梨県"]
["長野県"]
["岐阜県"]
["静岡県"]
["愛知県"]
["三重県"]
["滋賀県"]
["京都府"]
["大阪府"]
["兵庫県"]
["奈良県"]
["和歌山県"]
["鳥取県"]
["島根県"]
["岡山県"]
["広島県"]
["山口県"]
["徳島県"]
["香川県"]
["愛媛県"]
["高知県"]
["福岡県"]
["佐賀県"]
["長崎県"]
["熊本県"]
["大分県"]
["宮崎県"]
["鹿児島県"]
["沖縄県"]
[]
[]
[]
[]
[]
[]
[]
[]
[]
[]
[]
[]
[]
[]
[]
[]
[]
[]
[]
[]
[]
[]
[]
[]
[]
[]
[]
[]
[]
[]
[]
[]
[]
[]
[]
[]
[]
[]
[]
[]
[]
[]
[]
[]
[]
[]
[]
[]
[]
[]
[]
[]
[]
[]
[]
[]
[]
[]
[]
[]
[]
[]
[]
[]
[]
[]
[]
[]
[]
[]
[]
[]
[]
[]
[]
[]
[]
[]
[]
[]
[]
[]
[]
[]
[]
[]
[]
[]
[]
[]
[]
[]
[]
[]
[]
[]
[]
[]
[]
[]
[]
[]
[]
[]
[]
[]
[]
[]
[]
[]
[]
[]
[]
[]
[]
[]
[]
[]
[]
[]
[]
[]
[]
[]
[]
[]
[]
[]
[]
[]
[]
[]
[]
[]
[]
[]
[]
[]
[]
[]
[]
[]
[]
[]
[]
[]
[]
[]
[]
[]
[]
[]
[]
[]
[]
[]
[]
[]
[]
[]
[]
[]
[]
[]
[]
[]
[]
[]
[]
[]
[]
[]
[]
[]
[]
[]
[]
[null,null,"株式会社　仙台銘板"]

{"sheet":"事務局集計用","index":1,"n_rows":27,"n_cols":34,"rows_kept":27,"cut":false,"hidden":false,"merged":[[2,22,2,23],[2,29,2,32],[2,3,2,4],[2,5,2,6],[2,7,2,8],[2,9,2,18],[2,25,2,27],[2,20,2,21]]}
[]
[null,null,null,"事務局集計用 こちらのシートの様式は変更しないでください。",null,null,null,null,null,null,null,null,null,null,null,null,null,null,null,null,null,160000,null,120000,"屋外の角の希望削除"]
[null,null,null,"申　込　者　名",null,"出　展　者　名",null,"参考情報",null,"窓　　　口",null,null,null,null,null,null,null,null,null,"屋内","屋内",null,"屋外",null,"出展料","プレゼンテーション",null,null,null,"出展技術",null,null,null,"事務局あて"]
["申込年月日",null,"★企業・団体\n☆大学・行政","ﾌﾘｶﾞﾅ\n（半角入力）","会社名\n（全角入力）","ﾌﾘｶﾞﾅ\n（半角入力）","ブース社名\n（全角入力）","過去ＥＥ\n出展回数","本社等\n所在地","氏名","E-mail","部署","役職","〒","県別","住所\n（都道府県から入力）","TEL\n（半角入力）","FAX\n（半角入力）","所属団体","角の\n希望","小間数","屋内\n小間代","小間数","屋外\n小間代","合計","希望","テーマ\n（分野）","名称",null,"新技術\n名称","NETIS\n登録番号\n（半角入力）","技術分野","i-Construction","通信欄"]
[{"$f":"TODAY()","v":"2017-10-31"},{"$f":"$AC5","v":1},"★",{"$f":"IF(提出用!$D$7=\"\",\"\",提出用!$D$7)","v":""},{"$f":"IF(提出用!$D$8=\"\",\"\",提出用!$D$8)","v":""},{"$f":"IF(提出用!$D$10=\"\",\"\",提出用!$D$10)","v":""},{"$f":"IF(提出用!$D$11=\"\",\"\",提出用!$D$11)","v":""},{"$f":"IF($H$17=0,\"\",VLOOKUP($H$17,$H$18:$I$21,2,FALSE))","v":""},{"$f":"提出用!$Q$17","v":0},{"$f":"提出用!$D$14","v":0},{"$f":"提出用!$D$16","v":0},{"$f":"IF(提出用!$L$14=\"\",\"\",提出用!$L$14)","v":""},{"$f":"IF(提出用!$Q$14=\"\",\"\",提出用!$Q$14)","v":""},{"$f":"IF(提出用!$E$15=\"\",\"\",提出用!$E$15)","v":""},{"$f":"IF(提出用!$H$15=\"\",\"\",LEFT(提出用!$H$15,3))","v":""},{"$f":"提出用!$H$15","v":0},{"$f":"IF(提出用!$D$17=\"\",\"\",提出用!$D$17)","v":""},{"$f":"IF(提出用!$L$17=\"\",\"\",提出用!$L$17)","v":""},{"$f":"IF($S$17=0,\"\",VLOOKUP($S$17,$S$18:$T$27,2,FALSE))","v":""},{"$f":"IF($U$17=0,\"\",VLOOKUP(U17,$U$18:$V$19,2,FALSE))","v":""},{"$f":"提出用!$F$25","v":0},{"$f":"$U$5*$V$2","v":0},{"$f":"提出用!$F$27","v":0},{"$f":"$W$5*$X$2","v":0},{"$f":"SUM($V5,$X5)","v":0},{"$f":"IF($Z$17=0,\"\",VLOOKUP($Z$17,$Z$18:$AA$19,2,FALSE))","v":""},{"$f":"IF(Z5=\"\",\"\",VLOOKUP($AA$17,$AC$5:$AG$16,4,$AA$17))","v":""},{"$f":"IF(Z5=\"\",\"\",VLOOKUP($AA$17,$AC$5:$AG$16,2,$AA$17))","v":""},1,{"$f":"IF(提出用!$E42=\"\",\"\",提出用!$E42)","v":""},{"$f":"CONCATENATE(提出用!$N42,提出用!$O42,提出用!$Q42)","v":""},{"$f":"IF(提出用!$B42=\"\",\"\",VLOOKUP(提出用!$B42,$AF$18:$AG$22,2,FALSE))","v":""},{"$f":"IF(提出用!$R42=\"\",\"\",提出用!$R42)","v":""},{"$f":"提出用!$B$55","v":0}]
[null,{"$f":"$AC6","v":2},null,null,null,null,null,null,null,null,null,null,null,null,null,null,null,null,null,null,null,null,null,null,null,null,null,null,2,{"$f":"IF(提出用!$E43=\"\",\"\",提出用!$E43)","v":""},{"$f":"CONCATENATE(提出用!$N43,提出用!$O43,提出用!$Q43)","v":""},{"$f":"IF(提出用!$B43=\"\",\"\",VLOOKUP(提出用!$B43,$AF$18:$AG$22,2,FALSE))","v":""},{"$f":"IF(提出用!$R43=\"\",\"\",提出用!$R43)","v":""}]
[null,3,null,null,null,null,null,null,null,null,null,null,null,null,null,null,null,null,null,null,null,null,null,null,null,null,null,null,3,{"$f":"IF(提出用!$E44=\"\",\"\",提出用!$E44)","v":""},{"$f":"CONCATENATE(提出用!$N44,提出用!$O44,提出用!$Q44)","v":""},{"$f":"IF(提出用!$B44=\"\",\"\",VLOOKUP(提出用!$B44,$AF$18:$AG$22,2,FALSE))","v":""},{"$f":"IF(提出用!$R44=\"\",\"\",提出用!$R44)","v":""}]
[null,4,null,null,null,null,null,null,null,null,null,null,null,null,null,null,null,null,null,null,null,null,null,null,null,null,null,null,4,{"$f":"IF(提出用!$E45=\"\",\"\",提出用!$E45)","v":""},{"$f":"CONCATENATE(提出用!$N45,提出用!$O45,提出用!$Q45)","v":""},{"$f":"IF(提出用!$B45=\"\",\"\",VLOOKUP(提出用!$B45,$AF$18:$AG$22,2,FALSE))","v":""},{"$f":"IF(提出用!$R45=\"\",\"\",提出用!$R45)","v":""}]
[null,5,null,null,null,null,null,null,null,null,null,null,null,null,null,null,null,null,null,null,null,null,null,null,null,null,null,null,5,{"$f":"IF(提出用!$E46=\"\",\"\",提出用!$E46)","v":""},{"$f":"CONCATENATE(提出用!$N46,提出用!$O46,提出用!$Q46)","v":""},{"$f":"IF(提出用!$B46=\"\",\"\",VLOOKUP(提出用!$B46,$AF$18:$AG$22,2,FALSE))","v":""},{"$f":"IF(提出用!$R46=\"\",\"\",提出用!$R46)","v":""}]
[null,6,null,null,null,null,null,null,null,null,null,null,null,null,null,null,null,null,null,null,null,null,null,null,null,null,null,null,6,{"$f":"IF(提出用!$E47=\"\",\"\",提出用!$E47)","v":""},{"$f":"CONCATENATE(提出用!$N47,提出用!$O47,提出用!$Q47)","v":""},{"$f":"IF(提出用!$B47=\"\",\"\",VLOOKUP(提出用!$B47,$AF$18:$AG$22,2,FALSE))","v":""},{"$f":"IF(提出用!$R47=\"\",\"\",提出用!$R47)","v":""}]
[null,7,null,null,null,null,null,null,null,null,null,null,null,null,null,null,null,null,null,null,null,null,null,null,null,null,null,null,7,{"$f":"IF(提出用!$E48=\"\",\"\",提出用!$E48)","v":""},{"$f":"CONCATENATE(提出用!$N48,提出用!$O48,提出用!$Q48)","v":""},{"$f":"IF(提出用!$B48=\"\",\"\",VLOOKUP(提出用!$B48,$AF$18:$AG$22,2,FALSE))","v":""},{"$f":"IF(提出用!$R48=\"\",\"\",提出用!$R48)","v":""}]
[null,8,null,null,null,null,null,null,null,null,null,null,null,null,null,null,null,null,null,null,null,null,null,null,null,null,null,null,8,{"$f":"IF(提出用!$E49=\"\",\"\",提出用!$E49)","v":""},{"$f":"CONCATENATE(提出用!$N49,提出用!$O49,提出用!$Q49)","v":""},{"$f":"IF(提出用!$B49=\"\",\"\",VLOOKUP(提出用!$B49,$AF$18:$AG$22,2,FALSE))","v":""},{"$f":"IF(提出用!$R49=\"\",\"\",提出用!$R49)","v":""}]
[null,9,null,null,null,null,null,null,null,null,null,null,null,null,null,null,null,null,null,null,null,null,null,null,null,null,null,null,9,{"$f":"IF(提出用!$E50=\"\",\"\",提出用!$E50)","v":""},{"$f":"CONCATENATE(提出用!$N50,提出用!$O50,提出用!$Q50)","v":""},{"$f":"IF(提出用!$B50=\"\",\"\",VLOOKUP(提出用!$B50,$AF$18:$AG$22,2,FALSE))","v":""},{"$f":"IF(提出用!$R50=\"\",\"\",提出用!$R50)","v":""}]
[null,10,null,null,null,null,null,null,null,null,null,null,null,null,null,null,null,null,null,null,null,null,null,null,null,null,null,null,10,{"$f":"IF(提出用!$E51=\"\",\"\",提出用!$E51)","v":""},{"$f":"CONCATENATE(提出用!$N51,提出用!$O51,提出用!$Q51)","v":""},{"$f":"IF(提出用!$B51=\"\",\"\",VLOOKUP(提出用!$B51,$AF$18:$AG$22,2,FALSE))","v":""},{"$f":"IF(提出用!$R51=\"\",\"\",提出用!$R51)","v":""}]
[null,11,null,null,null,null,null,null,null,null,null,null,null,null,null,null,null,null,null,null,null,null,null,null,null,null,null,null,11,{"$f":"IF(提出用!$E52=\"\",\"\",提出用!$E52)","v":""},{"$f":"CONCATENATE(提出用!$N52,提出用!$O52,提出用!$Q52)","v":""},{"$f":"IF(提出用!$B52=\"\",\"\",VLOOKUP(提出用!$B52,$AF$18:$AG$22,2,FALSE))","v":""},{"$f":"IF(提出用!$R52=\"\",\"\",提出用!$R52)","v":""}]
[null,12,null,null,null,null,null,null,null,null,null,null,null,null,null,null,null,null,null,null,null,null,null,null,null,null,null,null,12,{"$f":"IF(提出用!$E53=\"\",\"\",提出用!$E53)","v":""},{"$f":"CONCATENATE(提出用!$N53,提出用!$O53,提出用!$Q53)","v":""},{"$f":"IF(提出用!$B53=\"\",\"\",VLOOKUP(提出用!$B53,$AF$18:$AG$22,2,FALSE))","v":""},{"$f":"IF(提出用!$R53=\"\",\"\",提出用!$R53)","v":""}]
[null,null,null,null,null,null,null,0,null,null,null,null,null,null,null,null,null,null,0,null,0,null,null,null,null,0,0]
[null,null,null,null,null,null,null,1,"なし",null,null,null,null,null,null,null,null,null,1,"日建連",1,"有","屋内",null,null,1,"有",null,null,null,null,"設計・施工","Ａ設計・施工"]
[null,null,null,null,null,null,null,2,"1～5",null,null,null,null,null,null,null,null,null,6,"道建協",2,"無","屋外",null,null,2,null,null,null,null,null,"維持管理予防保全","Ｂ維持管理・予防保全"]
[null,null,null,null,null,null,null,3,"6～26",null,null,null,null,null,null,null,null,null,2,"連合会",null,null,null,null,null,null,null,null,null,null,null,"建設副産物リサイクル","Ｃ建設副産物・リサイクル"]
[null,null,null,null,null,null,null,4,27,null,null,null,null,null,null,null,null,null,7,"機施協",null,null,null,null,null,null,null,null,null,null,null,"防災・安全","Ｄ防災・安全"]
[null,null,null,null,null,null,null,null,null,null,null,null,null,null,null,null,null,null,3,"東コン",null,null,null,null,null,null,null,null,null,null,null,"その他共通","Ｅその他　共通"]
[null,null,null,null,null,null,null,null,null,null,null,null,null,null,null,null,null,null,8,"法面協"]
[null,null,null,null,null,null,null,null,null,null,null,null,null,null,null,null,null,null,4,"埋浚"]
[null,null,null,null,null,null,null,null,null,null,null,null,null,null,null,null,null,null,9,"建電協"]
[null,null,null,null,null,null,null,null,null,null,null,null,null,null,null,null,null,null,5,"建コン"]
[null,null,null,null,null,null,null,null,null,null,null,null,null,null,null,null,null,null,10,"単独"]